fUST/lending_fUST_20250611
["ID","MTS","AMOUNT","RATE_DAILY","PERIOD"]
[365397475,1749651041756,-151.0,0.00021369,2]
[365397477,1749651041766,-440.0,0.00021369,4]
[365397479,1749651041775,-440.0,0.00021369,4]
[365397481,1749651041784,-597.53,0.00021369,4]
[365397482,1749651041794,-440.0,0.00021369,4]
[365397485,1749651041804,-400.0,0.00021369,4]
[365397487,1749651041814,-186.93856159,0.00021369,4]
[365397497,1749651041934,-400.0,0.00021369,4]
[365397498,1749651041944,-440.0,0.00021369,4]
[365397500,1749651041953,-324.72942855,0.00021369,4]
[365397502,1749651041966,-151.08869966,0.00021369,4]
[365397504,1749651041975,-460.0,0.00021369,4]
[365397506,1749651041985,-2142.684324,0.00021369,2]
[365397508,1749651041994,-440.0,0.00021369,4]
[365397510,1749651042004,-460.0,0.00021369,4]
[365397512,1749651042018,-2142.684324,0.00021369,2]
[365397514,1749651042028,-345.79823769,0.00021369,4]
[365397516,1749651042038,-410.0,0.00021369,4]
[365397519,1749651042048,-187.0236577,0.00021369,4]
[365397521,1749651042059,-440.0,0.00021369,4]
[365397523,1749651042069,-420.0,0.00021369,4]
[365397525,1749651042078,-433.12221441,0.00021369,4]
[365397527,1749651042089,-460.0,0.00021369,4]
[365397529,1749651042099,-300.0,0.00021369,4]
[365397531,1749651042109,-403.59869972,0.00021369,4]
[365397533,1749651042119,-384.59214887,0.00021369,4]
[365397535,1749651042129,-440.0,0.00021369,4]
[365397537,1749651042139,-460.0,0.00021369,4]
[365397539,1749651042149,-420.0,0.00021369,4]
[365397541,1749651042158,-399.62741147,0.00021369,4]
[365397543,1749651042168,-420.0,0.00021369,4]
[365397545,1749651042178,-420.0,0.00021369,4]
[365397547,1749651042187,-420.0,0.00021369,4]
[365397549,1749651042197,-336.43852,0.00021369,2]
[365397551,1749651042207,-467.60181683,0.00021369,4]
[365397553,1749651042223,-270.0,0.00021369,4]
[365397555,1749651042234,-460.0,0.00021369,4]
[365397556,1749651042243,-336.43852,0.00021369,2]
[365397558,1749651042253,-463.07,0.00021369,4]
[365397560,1749651042262,-460.0,0.00021369,4]
[365397562,1749651042271,-460.0,0.00021369,4]
[365397564,1749651042281,-487.64,0.00021369,4]
[365397566,1749651042291,-460.0,0.00021369,4]
[365397568,1749651042301,-440.0,0.00021369,4]
[365397570,1749651042310,-420.0,0.00021369,4]
[365397572,1749651042320,-400.0,0.00021369,4]
[365397574,1749651042337,-460.0,0.00021369,4]
[365397576,1749651042353,-320.09794815,0.00021369,4]
[365397578,1749651042371,-460.0,0.00021369,4]
[365397580,1749651042389,-440.0,0.00021369,4]
[365397581,1749651042403,-420.0,0.00021369,4]
[365397583,1749651042424,-440.0,0.00021369,4]
[365397585,1749651042446,-500.0,0.00021369,4]
[365397587,1749651042466,-395.59789162,0.00021369,4]
[365397589,1749651042476,-400.0,0.00021369,4]
[365397591,1749651042486,-460.0,0.00021369,4]
[365397593,1749651042496,-440.0,0.00021369,4]
[365397595,1749651042506,-360.0,0.00021369,4]
[365397597,1749651042516,-841.99,0.00021369,4]
[365397599,1749651042525,-460.0,0.00021369,4]
[365397601,1749651042534,-460.0,0.00021369,4]
[365397603,1749651042544,-435.54679998,0.00021369,4]
[365397605,1749651042553,-440.0,0.00021369,4]
[365397607,1749651042563,-460.0,0.00021369,4]
[365397610,1749651042574,-320.0,0.00021369,4]
[365397612,1749651042584,-420.0,0.00021369,4]
[365397614,1749651042593,-460.0,0.00021369,4]
[365397616,1749651042602,-460.0,0.00021369,4]
[365397618,1749651042612,-460.0,0.00021369,4]
[365397620,1749651042621,-316.15880836,0.00021369,4]
[365397622,1749651042631,-440.0,0.00021369,4]
[365397624,1749651042640,-460.0,0.00021369,4]
[365397626,1749651042651,-188.614467,0.00021369,2]
[365397628,1749651042660,-440.0,0.00021369,4]
[365397630,1749651042669,-460.0,0.00021369,4]
[365397632,1749651042678,-188.614467,0.00021369,2]
[365397634,1749651042687,-460.0,0.00021369,4]
[365397636,1749651042696,-460.0,0.00021369,4]
[365397639,1749651042705,-330.0,0.00021369,4]
[365397641,1749651042719,-460.0,0.00021369,4]
[365397642,1749651042728,-460.0,0.00021369,4]
[365397643,1749651042738,-189.87853009,0.00021369,4]
[365397644,1749651042747,-420.0,0.00021369,4]
[365397646,1749651042756,-460.0,0.00021369,4]
[365397648,1749651042766,-420.0,0.00021369,4]
[365397651,1749651042775,-420.0,0.00021369,4]
[365397654,1749651042785,-460.0,0.00021369,4]
[365397657,1749651042794,-420.0,0.00021369,4]
[365397659,1749651042803,-420.0,0.00021369,4]
[365397661,1749651042813,-1545.01,0.00021369,4]
[365397663,1749651042822,-410.0,0.00021369,4]
[365397665,1749651042831,-460.0,0.00021369,4]
[365397667,1749651042841,-460.0,0.00021369,2]
[365397668,1749651042851,-151.0,0.00021369,2]
[365397670,1749651042860,-460.0,0.00021369,4]
[365397672,1749651042870,-460.0,0.00021369,4]
[365397674,1749651042878,-440.0,0.00021369,4]
[365397676,1749651042888,-460.0,0.00021369,4]
[365397678,1749651042898,-452.24,0.00021369,4]
[365397680,1749651042908,-1207.26,0.00021369,4]
[365397682,1749651042918,-420.0,0.00021369,4]
[365397684,1749651042927,-1930.21,0.00021369,4]
[365397686,1749651042937,-460.0,0.00021369,4]
[365397688,1749651042947,-420.0,0.00021369,4]
[365397690,1749651042956,-420.0,0.00021369,4]
[365397691,1749651042970,-400.0,0.00021369,4]
[365397692,1749651042980,-420.0,0.00021369,4]
[365397693,1749651042989,-1277.79,0.00021369,4]
[365397695,1749651042999,-460.0,0.00021369,4]
[365397696,1749651043011,-420.0,0.00021369,4]
[365397697,1749651043021,-460.0,0.00021369,4]
[365397698,1749651043030,-420.0,0.00021369,4]
[365397699,1749651043039,-1108.04,0.00021369,4]
[365397700,1749651043050,-460.0,0.00021369,4]
[365397702,1749651043059,-460.0,0.00021369,4]
[365397703,1749651043069,-420.0,0.00021369,4]
[365397704,1749651043079,-460.0,0.00021369,4]
[365397706,1749651043090,-390.0,0.00021369,4]
[365397708,1749651043100,-460.0,0.00021369,4]
[365397710,1749651043110,-460.0,0.00021369,4]
[365397712,1749651043119,-420.0,0.00021369,4]
[365397715,1749651043129,-467.64112608,0.00021369,4]
[365397716,1749651043139,-460.0,0.00021369,4]
[365397717,1749651043149,-458.872463,0.00021369,2]
[365397718,1749651043158,-460.0,0.00021369,4]
[365397719,1749651043167,-590.97,0.00021369,4]
[365397720,1749651043177,-460.0,0.00021369,4]
[365397721,1749651043186,-458.872463,0.00021369,2]
[365397722,1749651043196,-420.0,0.00021369,4]
[365397723,1749651043205,-849.35,0.00021369,4]
[365397724,1749651043216,-460.0,0.00021369,4]
[365397725,1749651043227,-460.0,0.00021369,4]
[365397726,1749651043236,-440.0,0.00021369,4]
[365397727,1749651043245,-322.10494488,0.00021369,4]
[365397728,1749651043254,-400.0,0.00021369,4]
[365397729,1749651043264,-460.0,0.00021369,4]
[365397730,1749651043274,-460.0,0.00021369,4]
[365397731,1749651043283,-885.56,0.00021369,4]
[365397732,1749651043292,-420.0,0.00021369,4]
[365397733,1749651043301,-460.0,0.00021369,4]
[365397734,1749651043311,-460.0,0.00021369,4]
[365397735,1749651043320,-725.92,0.00021369,4]
[365397736,1749651043329,-459.16376617,0.00021369,4]
[365397737,1749651043339,-291.007449,0.00021369,2]
[365397738,1749651043347,-371.70170255,0.00021369,4]
[365397739,1749651043356,-390.0,0.00021369,4]
[365397740,1749651043366,-420.0,0.00021369,4]
[365397741,1749651043375,-420.0,0.00021369,4]
[365397742,1749651043384,-460.0,0.00021369,4]
[365397743,1749651043394,-420.0,0.00021369,4]
[365397744,1749651043403,-460.0,0.00021369,4]
[365397745,1749651043412,-610.810874,0.00021369,2]
[365397746,1749651043421,-246.13882674,0.00021369,4]
[365397747,1749651043430,-320.32682135,0.00021369,4]
[365397748,1749651043440,-610.810874,0.00021369,2]
[365397750,1749651043449,-460.0,0.00021369,4]
[365397752,1749651043458,-1441.28,0.00021369,4]
[365397754,1749651043469,-460.0,0.00021369,4]
[365397756,1749651043478,-320.0,0.00021369,4]
[365397758,1749651043487,-216.01084162,0.00021373,2]
[365397759,1749651043497,-610.810874,0.00021373,2]
[365397760,1749651043506,-610.810874,0.00021373,2]
[365397761,1749651043516,-151.0,0.00021442,2]
[365397762,1749651043525,-161.054168,0.00021442,2]
[365397763,1749651043534,-2142.684324,0.00021442,2]
[365397764,1749651043543,-2142.684324,0.00021442,2]
[365397765,1749651043552,-188.614467,0.00021442,2]
[365397766,1749651043561,-188.614467,0.00021442,2]
[365397767,1749651043570,-165.061758,0.00021542,2]
[365397768,1749651043579,-165.061758,0.00021542,2]
[365397769,1749651043588,-151.0,0.00021592,2]
[365397770,1749651043598,-500.0,0.00021592,2]
[365397771,1749651043607,-1000.0,0.00021621,2]
[365397772,1749651043616,-1000.0,0.00021621,2]
[365397773,1749651043627,-500.0,0.00021621,2]
[365397774,1749651043636,-503.87350031,0.00021621,2]
[365397775,1749651043645,-1000.0,0.00021621,2]
[365397776,1749651043655,-506.45617297,0.00021621,2]
[365397777,1749651043664,-503.20737064,0.00021621,2]
[365397778,1749651043673,-979.90183394,0.00021621,2]
[365397779,1749651043682,-1039.29664791,0.00021621,2]
[365397780,1749651043692,-335.0,0.00021631,2]
[365397781,1749651043701,-500.0,0.00021642,3]
[365397782,1749651043712,-440.0,0.00021643,4]
[365397783,1749651043722,-400.0,0.00021643,4]
[365397784,1749651043731,-420.0,0.00021643,4]
[365397785,1749651043740,-151.0,0.00021643,2]
[365397786,1749651043749,-151.0,0.00021643,2]
[365397787,1749651043758,-459.74083826,0.00021643,4]
[365397788,1749651043767,-460.0,0.00021643,4]
[365397789,1749651043776,-317.87281956,0.00021643,4]
[365397790,1749651043785,-342.83759296,0.00021643,4]
[365397791,1749651043794,-597.53,0.00021643,4]
[365397792,1749651043803,-440.0,0.00021643,4]
[365397793,1749651043813,-360.0,0.00021643,4]
[365397794,1749651043822,-360.0,0.00021643,4]
[365397795,1749651043832,-360.0,0.00021643,4]
[365397796,1749651043841,-460.0,0.00021643,4]
[365397797,1749651043850,-463.07,0.00021643,4]
[365397798,1749651043859,-360.0,0.00021643,4]
[365397799,1749651043868,-420.0,0.00021643,4]
[365397800,1749651043878,-420.0,0.00021643,4]
[365397801,1749651043887,-460.0,0.00021643,4]
[365397802,1749651043897,-441.7137871,0.00021643,4]
[365397803,1749651043907,-460.0,0.00021643,4]
[365397804,1749651043916,-440.0,0.00021643,4]
[365397805,1749651043926,-841.99,0.00021643,4]
[365397806,1749651043935,-460.0,0.00021643,4]
[365397807,1749651043945,-460.0,0.00021643,4]
[365397808,1749651043954,-237.79747105,0.00021643,4]
[365397809,1749651043963,-460.0,0.00021643,4]
[365397810,1749651043972,-460.0,0.00021643,4]
[365397811,1749651043982,-460.0,0.00021643,4]
[365397812,1749651043991,-460.0,0.00021643,4]
[365397813,1749651044001,-460.0,0.00021643,4]
[365397814,1749651044015,-460.0,0.00021643,4]
[365397815,1749651044110,-460.0,0.00021643,4]
[365397816,1749651044120,-440.0,0.00021643,4]
[365397817,1749651044130,-440.0,0.00021643,4]
[365397818,1749651044139,-460.0,0.00021643,4]
[365397819,1749651044149,-1545.01,0.00021643,4]
[365397820,1749651044160,-340.0,0.00021643,4]
[365397821,1749651044170,-460.0,0.00021643,2]
[365397822,1749651044179,-460.0,0.00021643,4]
[365397823,1749651044190,-420.0,0.00021643,4]
[365397824,1749651044199,-460.0,0.00021643,4]
[365397825,1749651044210,-1207.26,0.00021643,4]
[365397826,1749651044221,-1930.21,0.00021643,4]
[365397827,1749651044231,-460.0,0.00021643,4]
[365397828,1749651044241,-1277.79,0.00021643,4]
[365397829,1749651044251,-440.0,0.00021643,4]
[365397830,1749651044262,-360.0,0.00021643,4]
[365397831,1749651044271,-1108.04,0.00021643,4]
[365397832,1749651044280,-460.0,0.00021643,4]
[365397833,1749651044290,-420.0,0.00021643,4]
[365397834,1749651044300,-460.0,0.00021643,4]
[365397835,1749651044310,-460.0,0.00021643,4]
[365397836,1749651044319,-440.0,0.00021643,4]
[365397837,1749651044329,-440.0,0.00021643,4]
[365397838,1749651044338,-590.97,0.00021643,4]
[365397839,1749651044347,-440.0,0.00021643,4]
[365397840,1749651044357,-460.0,0.00021643,4]
[365397841,1749651044367,-849.35,0.00021643,4]
[365397842,1749651044377,-460.0,0.00021643,4]
[365397843,1749651044387,-360.0,0.00021643,4]
[365397844,1749651044397,-440.0,0.00021643,4]
[365397845,1749651044406,-460.0,0.00021643,4]
[365397846,1749651044416,-885.56,0.00021643,4]
[365397847,1749651044426,-460.0,0.00021643,4]
[365397848,1749651044435,-460.0,0.00021643,4]
[365397849,1749651044445,-725.92,0.00021643,4]
[365397850,1749651044454,-460.0,0.00021643,4]
[365397851,1749651044465,-460.0,0.00021643,4]
[365397852,1749651044475,-400.0,0.00021643,4]
[365397853,1749651044484,-1441.28,0.00021643,4]
[365397854,1749651044493,-460.0,0.00021643,4]
[365397855,1749651044503,-176.8752352,0.00021766,2]
[365397856,1749651044513,-158.7816813,0.00021766,2]
[365397857,1749651044522,-237.9898302,0.00021766,2]
[365397858,1749651044531,-573.4653004,0.00021766,2]
[365397859,1749651044541,-176.8752352,0.00021766,2]
[365397860,1749651044551,-153.0,0.00021766,2]
[365397861,1749651044560,-158.7816813,0.00021766,2]
[365397862,1749651044570,-573.4653004,0.00021766,2]
[365397863,1749651044579,-176.8752352,0.00021766,2]
[365397864,1749651044588,-158.7816813,0.00021766,2]
[365397865,1749651044597,-573.4653004,0.00021766,2]
[365397866,1749651044607,-153.0,0.00021766,2]
[365397867,1749651044616,-153.0,0.00021766,2]
[365397868,1749651044625,-176.8752352,0.00021766,2]
[365397869,1749651044635,-158.7816813,0.00021766,2]
[365397870,1749651044644,-573.4653004,0.00021766,2]
[365397871,1749651044653,-158.7816813,0.00021766,2]
[365397872,1749651044663,-176.8752352,0.00021766,2]
[365397873,1749651044672,-573.4653004,0.00021766,2]
[365397874,1749651044681,-158.7816813,0.00021766,2]
[365397875,1749651044691,-573.4653004,0.00021766,2]
[365397876,1749651044700,-317.5633626,0.00021766,2]
[365397877,1749651044709,-573.4653004,0.00021766,2]
[365397878,1749651044724,-573.4653004,0.00021766,2]
[365397879,1749651044733,-573.4653004,0.00021766,2]
[365397880,1749651044742,-573.4653004,0.00021766,2]
[365397881,1749651044751,-357.3181001,0.00021766,2]
[365397882,1749651044761,-418.0,0.00021814,2]
[365397883,1749651044770,-160.0,0.00021884,2]
[365397884,1749651044779,-424.19973472,0.00021884,2]
[365397885,1749651044789,-160.0,0.00021884,2]
[365397886,1749651044798,-213.16534259,0.00021884,2]
[365397887,1749651044808,-844.64040732,0.00021884,2]
[365397888,1749651044819,-160.0,0.00021884,2]
[365397889,1749651044829,-160.0,0.00021884,2]
[365397890,1749651044838,-229.71724145,0.00021884,2]
[365397891,1749651044848,-835.03886221,0.00021884,2]
[365397892,1749651044859,-165.061758,0.00021886,2]
[365397893,1749651044869,-165.061758,0.00021886,2]
[365397894,1749651044878,-336.43852,0.00021886,2]
[365397895,1749651044889,-336.43852,0.00021886,2]
[365397896,1749651044899,-458.872463,0.00021886,2]
[365397897,1749651044909,-458.872463,0.00021886,2]
[365397898,1749651044919,-11860.25191276,0.00021886,2]
[365397899,1749651044927,-333.37865267,0.000219,2]
[365397900,1749651044937,-250.0,0.0002191,2]
[365397901,1749651044947,-200.0,0.00021917,2]
[365397902,1749651044959,-527.04436035,0.00021917,4]
[365397903,1749651044970,-151.0,0.00021917,2]
[365397904,1749651044980,-500.0,0.00021917,2]
[365397905,1749651044990,-155.192921,0.00021917,2]
[365397906,1749651045000,-597.53,0.00021917,4]
[365397907,1749651045012,-2142.684324,0.00021917,2]
[365397908,1749651045022,-2142.684324,0.00021917,2]
[365397909,1749651045031,-500.0,0.00021917,2]
[365397910,1749651045040,-500.0,0.00021917,2]
[365397911,1749651045050,-500.0,0.00021917,2]
[365397912,1749651045059,-500.0,0.00021917,2]
[365397913,1749651045068,-460.0,0.00021917,4]
[365397914,1749651045078,-463.07,0.00021917,4]
[365397915,1749651045089,-460.0,0.00021917,4]
[365397916,1749651045099,-420.0,0.00021917,4]
[365397917,1749651045109,-841.99,0.00021917,4]
[365397918,1749651045119,-325.56,0.00021917,4]
[365397919,1749651045128,-160.55,0.00021917,4]
[365397920,1749651045138,-500.0,0.00021917,4]
[365397921,1749651045148,-500.0,0.00021917,4]
[365397922,1749651045158,-500.0,0.00021917,4]
[365397923,1749651045167,-500.0,0.00021917,4]
[365397924,1749651045177,-420.0,0.00021917,4]
[365397925,1749651045187,-464.96,0.00021917,4]
[365397926,1749651045197,-460.0,0.00021917,4]
[365397927,1749651045206,-188.614467,0.00021917,2]
[365397928,1749651045216,-460.0,0.00021917,4]
[365397929,1749651045225,-188.614467,0.00021917,2]
[365397930,1749651045235,-460.0,0.00021917,4]
[365397931,1749651045245,-505.29,0.00021917,4]
[365397932,1749651045255,-199.87390552,0.00021917,4]
[365397933,1749651045264,-460.0,0.00021917,4]
[365397934,1749651045273,-1545.01,0.00021917,4]
[365397935,1749651045283,-460.0,0.00021917,2]
[365397936,1749651045292,-460.0,0.00021917,4]
[365397937,1749651045302,-460.0,0.00021917,4]
[365397938,1749651045312,-1207.26,0.00021917,4]
[365397939,1749651045321,-1930.21,0.00021917,4]
[365397940,1749651045330,-460.0,0.00021917,4]
[365397941,1749651045340,-1277.79,0.00021917,4]
[365397942,1749651045349,-1108.04,0.00021917,4]
[365397943,1749651045358,-460.0,0.00021917,4]
[365397944,1749651045368,-420.0,0.00021917,4]
[365397945,1749651045377,-230.35,0.00021917,4]
[365397946,1749651045386,-590.97,0.00021917,4]
[365397947,1749651045396,-460.0,0.00021917,4]
[365397948,1749651045407,-849.35,0.00021917,4]
[365397949,1749651045418,-460.0,0.00021917,4]
[365397950,1749651045429,-460.0,0.00021917,4]
[365397951,1749651045439,-885.56,0.00021917,4]
[365397952,1749651045448,-460.0,0.00021917,4]
[365397953,1749651045459,-460.0,0.00021917,4]
[365397954,1749651045469,-725.92,0.00021917,4]
[365397955,1749651045479,-460.0,0.00021917,4]
[365397956,1749651045489,-460.0,0.00021917,4]
[365397957,1749651045498,-610.810874,0.00021917,2]
[365397958,1749651045507,-610.810874,0.00021917,2]
[365397959,1749651045516,-1441.28,0.00021917,4]
[365397960,1749651045526,-282.33014427,0.00021917,4]
[365397961,1749651045536,-151.0,0.00021918,2]
[365397962,1749651045546,-151.0,0.00021918,2]
[365397963,1749651045555,-1872.46,0.00021918,2]
[365397964,1749651045566,-405.0,0.00021965,2]
[365397965,1749651045575,-405.0,0.00021965,2]
[365397966,1749651045584,-13198.0,0.00022,2]
[365397967,1749651045594,-178.0,0.00022,2]
[365397968,1749651045604,-720.0,0.00022,2]
[365397969,1749651045614,-7174.0,0.00022,10]
[365397970,1749651045624,-171.0,0.00022,2]
[365397971,1749651045634,-729.29325,0.00022,2]
[365397972,1749651045643,-160.0,0.00022,2]
[365397973,1749651045652,-1527.89568885,0.00022003,6]
[365397974,1749651045662,-481.0,0.00022054,2]
[365397975,1749651045671,-420.0,0.00022056,2]
[365397976,1749651045680,-151.0,0.00022099,7]
[365397977,1749651045690,-151.0,0.00022099,7]
[365397978,1749651045699,-151.0,0.00022099,7]
[365397979,1749651045709,-151.0,0.00022099,7]
[365397980,1749651045719,-151.0,0.00022099,7]
[365397981,1749651045728,-151.0,0.00022099,7]
[365397983,1749651045737,-151.0,0.00022099,7]
[365397985,1749651045746,-151.0,0.00022099,7]
[365397987,1749651045756,-151.0,0.00022099,7]
[365397988,1749651045766,-3000.0,0.000221,2]
[365397989,1749651045775,-151.0,0.000221,7]
[365397990,1749651045784,-151.0,0.000221,7]
[365397992,1749651045793,-151.0,0.000221,7]
[365397993,1749651045803,-1527.89568885,0.00022107,6]
[365397994,1749651045812,-3000.0,0.0002211,2]
[365397995,1749651045822,-336.43852,0.00022117,7]
[365397996,1749651045831,-336.43852,0.00022117,7]
[365397997,1749651045840,-458.872463,0.00022117,7]
[365397998,1749651045849,-458.872463,0.00022117,7]
[365397999,1749651045859,-610.810874,0.00022117,7]
[365398000,1749651045869,-610.810874,0.00022117,7]
[365398001,1749651045878,-178.52723075,0.00022117,2]
[365398002,1749651045887,-5000.0,0.00022117,2]
[365398003,1749651045897,-207.4,0.00022117,2]
[365398004,1749651045906,-500.0,0.00022117,2]
[365398005,1749651045916,-1688.0,0.00022117,2]
[365398006,1749651045925,-292.0040564,0.00022117,2]
[365398007,1749651045935,-1250.0,0.00022117,2]
[365398008,1749651045944,-1250.0,0.00022117,2]
[365398009,1749651045955,-1250.0,0.00022117,2]
[365398011,1749651045967,-1250.0,0.00022117,2]
[365398012,1749651046057,-1250.0,0.00022117,2]
[365398013,1749651046068,-1250.0,0.00022117,2]
[365398014,1749651046078,-1250.0,0.00022117,2]
[365398015,1749651046088,-1250.0,0.00022117,2]
[365398016,1749651046098,-1250.0,0.00022117,2]
[365398017,1749651046108,-1250.0,0.00022117,2]
[365398018,1749651046118,-1250.0,0.00022117,2]
[365398019,1749651046127,-1250.0,0.00022117,2]
[365398020,1749651046137,-1250.0,0.00022117,2]
[365398022,1749651046146,-1250.0,0.00022117,2]
[365398023,1749651046155,-1250.0,0.00022117,2]
[365398024,1749651046165,-151.0,0.00022117,2]
[365398025,1749651046174,-214.80745853,0.00022117,2]
[365398026,1749651046183,-151.0,0.00022117,2]
[365398027,1749651046193,-151.0,0.00022117,2]
[365398028,1749651046202,-151.0,0.00022117,2]
[365398029,1749651046212,-151.0,0.00022117,2]
[365398030,1749651046223,-267.43392039,0.00022117,2]
[365398031,1749651046232,-3000.0,0.0002212,2]
[365398032,1749651046241,-3000.0,0.0002213,2]
[365398033,1749651046250,-151.0,0.0002213,7]
[365398034,1749651046259,-2142.684324,0.0002213,2]
[365398035,1749651046269,-2142.684324,0.0002213,2]
[365398036,1749651046278,-188.614467,0.0002213,7]
[365398037,1749651046287,-188.614467,0.0002213,7]
[365398038,1749651046296,-3000.0,0.0002214,2]
[365398039,1749651046306,-635.04327418,0.0002214,2]
[365398040,1749651046315,-3000.0,0.0002215,2]
[365398041,1749651046324,-3000.0,0.0002216,2]
[365398042,1749651046334,-1500.0,0.00022168,2]
[365398043,1749651046344,-521.66822977,0.00022168,2]
[365398044,1749651046354,-3000.0,0.0002217,2]
[365398045,1749651046363,-1750.456,0.00022172,2]
[365398046,1749651046372,-500.0,0.00022173,2]
[365398047,1749651046382,-500.0,0.00022173,2]
[365398048,1749651046391,-3000.0,0.0002218,2]
[365398049,1749651046400,-3000.0,0.0002219,2]
[365398050,1749651046410,-165.061758,0.0002219,7]
[365398051,1749651046422,-165.061758,0.0002219,7]
[365398052,1749651046431,-500.0,0.0002219,4]
[365398053,1749651046439,-211.43257476,0.00022191,30]
[365398054,1749651046448,-597.53,0.00022191,4]
[365398055,1749651046458,-460.0,0.00022191,4]
[365398056,1749651046468,-463.07,0.00022191,4]
[365398057,1749651046477,-460.0,0.00022191,4]
[365398058,1749651046487,-841.99,0.00022191,4]
[365398059,1749651046497,-500.0,0.00022191,4]
[365398060,1749651046506,-383.6,0.00022191,4]
[365398061,1749651046515,-460.0,0.00022191,4]
[365398062,1749651046525,-460.0,0.00022191,4]
[365398063,1749651046534,-460.0,0.00022191,4]
[365398064,1749651046543,-1545.01,0.00022191,4]
[365398065,1749651046552,-460.0,0.00022191,2]
[365398066,1749651046562,-460.0,0.00022191,4]
[365398067,1749651046571,-460.0,0.00022191,4]
[365398068,1749651046581,-1207.26,0.00022191,4]
[365398069,1749651046590,-1930.21,0.00022191,4]
[365398070,1749651046599,-460.0,0.00022191,4]
[365398071,1749651046608,-1277.79,0.00022191,4]
[365398072,1749651046618,-1108.04,0.00022191,4]
[365398073,1749651046627,-328.32,0.00022191,4]
[365398074,1749651046636,-590.97,0.00022191,4]
[365398075,1749651046645,-315.49,0.00022191,4]
[365398076,1749651046655,-849.35,0.00022191,4]
[365398077,1749651046665,-235.15,0.00022191,4]
[365398078,1749651046674,-226.85,0.00022191,4]
[365398079,1749651046684,-885.56,0.00022191,4]
[365398080,1749651046693,-460.0,0.00022191,4]
[365398081,1749651046702,-460.0,0.00022191,4]
[365398082,1749651046711,-725.92,0.00022191,4]
[365398083,1749651046722,-460.0,0.00022191,4]
[365398084,1749651046731,-460.0,0.00022191,4]
[365398085,1749651046740,-1441.28,0.00022191,4]
[365398086,1749651046750,-336.43852,0.00022198,7]
[365398087,1749651046759,-336.43852,0.00022198,7]
[365398088,1749651046768,-458.872463,0.00022198,7]
[365398089,1749651046778,-458.872463,0.00022198,7]
[365398090,1749651046788,-4523.287646,0.000222,2]
[365398091,1749651046797,-83432.83,0.000222,2]
[365398092,1749651046806,-151.0,0.000222,7]
[365398093,1749651046815,-151.0,0.000222,7]
[365398094,1749651046825,-151.0,0.000222,7]
[365398095,1749651046836,-151.0,0.000222,7]
[365398096,1749651046847,-2142.684324,0.000222,2]
[365398097,1749651046856,-2142.684324,0.000222,2]
[365398098,1749651046866,-165.061758,0.000222,7]
[365398099,1749651046876,-165.061758,0.000222,7]
[365398100,1749651046885,-455.11146821,0.000222,69]
[365398101,1749651046895,-455.1114682,0.000222,69]
[365398102,1749651046905,-336.43852,0.000222,7]
[365398103,1749651046914,-336.43852,0.000222,7]
[365398104,1749651046924,-188.614467,0.000222,7]